fUST/lending_fUST_20250611
["ID","MTS","AMOUNT","RATE_DAILY","PERIOD"]
[365320623,1749599446893,-604.28,0.00024383,4]
[365320625,1749599446903,-460.0,0.00024383,2]
[365320627,1749599446912,-2081.28,0.00024383,4]
[365320629,1749599446921,-460.0,0.00024383,4]
[365320631,1749599446931,-839.3,0.00024383,4]
[365320633,1749599446940,-1066.18,0.00024383,4]
[365320635,1749599446953,-1576.2,0.00024383,4]
[365320637,1749599446963,-1003.79,0.00024383,4]
[365320639,1749599446973,-1753.64,0.00024383,4]
[365320641,1749599446983,-652.87,0.00024383,4]
[365320643,1749599446993,-2613.35,0.00024383,4]
[365320645,1749599447003,-571.95,0.00024383,4]
[365320647,1749599447012,-1160.04,0.00024383,4]
[365320649,1749599447021,-1827.66,0.00024383,4]
[365320651,1749599447031,-2159.34,0.00024383,4]
[365320653,1749599447040,-460.0,0.00024383,4]
[365320655,1749599447050,-1171.58,0.00024383,4]
[365320657,1749599447059,-672.06,0.00024383,4]
[365320659,1749599447068,-983.42,0.00024383,4]
[365320661,1749599447077,-2360.04,0.00024383,4]
[365320663,1749599447087,-722.67,0.00024393,7]
[365320665,1749599447096,-151.0,0.00024397,7]
[365320667,1749599447106,-1207.0,0.00024398,7]
[365320669,1749599447115,-151.0,0.000244,5]
[365320671,1749599447125,-72499.98,0.000244,7]
[365320673,1749599447134,-151.0,0.000244,7]
[365320675,1749599447144,-2939.890255,0.000244,2]
[365320677,1749599447153,-2939.890255,0.000244,2]
[365320679,1749599447162,-151.0,0.000244,7]
[365320681,1749599447172,-2494.25,0.000244,7]
[365320683,1749599447181,-3604.64817149,0.000244,2]
[365320685,1749599447190,-151.0,0.000244,7]
[365320687,1749599447199,-181.523813,0.000244,7]
[365320689,1749599447209,-181.523813,0.000244,7]
[365320691,1749599447219,-290.545719,0.000244,7]
[365320693,1749599447228,-290.545719,0.000244,7]
[365320695,1749599447238,-196.75563594,0.00024406,2]
[365320697,1749599447247,-500.0,0.00024423,2]
[365320699,1749599447256,-859.0,0.0002443,2]
[365320701,1749599447266,-3604.64817145,0.00024448,2]
[365320703,1749599447276,-2875.67174954,0.00024486,11]
[365320705,1749599447285,-722.67,0.00024493,6]
[365320707,1749599447294,-3604.64817145,0.00024496,2]
[365320709,1749599447304,-200.0,0.00024499,2]
[365320711,1749599447314,-5230.45762747,0.000245,4]
[365320713,1749599447323,-61826.73689559,0.000245,3]
[365320735,1749599447524,-460.0,0.00022191,4]
[365320737,1749599447534,-460.0,0.00022465,4]
[365320739,1749599447544,-158.7504224,0.00022466,2]
[365320750,1749599447646,-176.8341807,0.00022466,2]
[365320752,1749599447655,-573.3540349,0.00022466,2]
[365320754,1749599447665,-460.0,0.00022739,4]
[365320756,1749599447675,-460.0,0.00023013,4]
[365320759,1749599447684,-460.0,0.00023287,4]
[365320761,1749599447694,-460.0,0.00023561,4]
[365320762,1749599447703,-201.60095132,0.00023699,2]
[365320764,1749599447713,-460.0,0.00023835,4]
[365320766,1749599447722,-460.0,0.00024109,4]
[365320769,1749599447732,-460.0,0.00024383,4]
[365320771,1749599447741,-5821.18044607,0.000245,3]
[365320773,1749599447753,-43060.48190345,0.000245,3]
[365320777,1749599447839,-315.18454239,0.000242,10]
[365320779,1749599447848,-37034.73336101,0.000245,3]
[365320795,1749599447988,-14490.09425752,0.000245,3]
[365320797,1749599448002,-4422.60911622,0.000245,3]
[365322909,1749599783395,1000.0,0.00024658,120]
[365322914,1749599870953,311.007422,0.00013699,2]
[365322933,1749600097782,5732.3527507,0.00024932,60]
[365322935,1749600332011,200.0,0.00023836,120]
[365322977,1749600471929,370.08,0.00024657,120]
[365322978,1749600511283,200.0,0.00024424,120]
[365323014,1749600632702,-722.0,0.000193,2]
[365323015,1749600632712,-198.7876592,0.00019565,2]
[365323016,1749600632721,-553.29,0.00019952,2]
[365323017,1749600632731,-225.0,0.0001996,2]
[365323018,1749600632740,-600.0,0.00019968,2]
[365323019,1749600632750,-300.0,0.00020073,2]
[365323020,1749600632759,-941.0,0.00020074,2]
[365323021,1749600632769,-300.0,0.00020075,2]
[365323022,1749600632778,-300.0,0.00020075,2]
[365323023,1749600632787,-300.0,0.00020075,2]
[365323024,1749600632798,-300.0,0.00020075,2]
[365323025,1749600632807,-604.28351266,0.00020075,2]
[365323026,1749600632816,-16836.5617377,0.00020076,2]
[365323027,1749600632826,-311.007422,0.00020187,2]
[365323028,1749600632835,-299.14070513,0.00020627,2]
[365323029,1749600632844,-1106.57,0.00020903,2]
[365323030,1749600632863,-255.75589816,0.00020995,2]
[365323031,1749600632873,-421.20366846,0.00020995,2]
[365323032,1749600632882,-600.0,0.00021064,2]
[365323033,1749600632891,-500.0,0.00021073,2]
[365323034,1749600632901,-1758.58,0.00021085,3]
[365323035,1749600632910,-879.29,0.00021085,3]
[365323036,1749600632919,-439.64,0.00021085,3]
[365323037,1749600632928,-219.82,0.00021085,3]
[365323038,1749600632937,-659.49,0.00021085,3]
[365323039,1749600632947,-524.11,0.00021085,3]
[365323040,1749600632956,-186.83,0.00021085,2]
[365323041,1749600632967,-314.47,0.00021085,3]
[365323042,1749600632977,-366.88,0.00021085,3]
[365323043,1749600632987,-183.44,0.00021085,3]
[365323044,1749600632997,-550.34,0.00021085,3]
[365323045,1749600633006,-500.0,0.00021094,2]
[365323046,1749600633015,-500.0,0.00021094,2]
[365323047,1749600633025,-500.0,0.00021094,2]
[365323048,1749600633035,-500.0,0.00021094,2]
[365323049,1749600633044,-418.0,0.00021094,2]
[365323050,1749600633054,-500.0,0.00021094,2]
[365323051,1749600633064,-202.5,0.00021094,2]
[365323052,1749600633074,-500.0,0.00021094,2]
[365323053,1749600633083,-500.0,0.00021094,2]
[365323054,1749600633092,-500.0,0.00021094,2]
[365323055,1749600633102,-508.57450474,0.00021094,2]
[365323056,1749600633111,-500.0,0.00021094,2]
[365323057,1749600633121,-156.12092099,0.00021094,2]
[365323058,1749600633131,-500.0,0.00021094,2]
[365323059,1749600633141,-374.49646234,0.00021094,2]
[365323060,1749600633151,-500.0,0.00021094,2]
[365323061,1749600633160,-500.0,0.00021094,2]
[365323062,1749600633170,-634.75198159,0.00021094,2]
[365323063,1749600633335,-513.5903136,0.00021094,2]
[365323064,1749600633345,-500.0,0.00021094,2]
[365323065,1749600633358,-500.0,0.00021094,2]
[365323066,1749600633367,-306.72882231,0.00021094,2]
[365323067,1749600633378,-430.0,0.00021095,4]
[365323068,1749600633388,-460.0,0.00021095,4]
[365323069,1749600633398,-505.87928417,0.00021095,4]
[365323070,1749600633407,-460.0,0.00021095,4]
[365323071,1749600633417,-460.0,0.00021095,4]
[365323072,1749600633426,-460.0,0.00021095,4]
[365323073,1749600633440,-460.0,0.00021095,4]
[365323074,1749600633450,-440.0,0.00021095,4]
[365323075,1749600633459,-460.0,0.00021095,4]
[365323076,1749600633469,-460.0,0.00021095,4]
[365323077,1749600633479,-460.0,0.00021095,4]
[365323078,1749600633488,-460.0,0.00021095,4]
[365323079,1749600633497,-460.0,0.00021095,4]
[365323080,1749600633507,-430.0,0.00021095,4]
[365323081,1749600633516,-430.0,0.00021095,4]
[365323082,1749600633525,-460.0,0.00021095,4]
[365323083,1749600633535,-460.0,0.00021095,4]
[365323084,1749600633544,-460.0,0.00021095,4]
[365323085,1749600633553,-502.23042331,0.00021095,4]
[365323086,1749600633563,-355.86025775,0.00021095,4]
[365323087,1749600633573,-460.0,0.00021095,4]
[365323088,1749600633583,-296.78,0.00021095,4]
[365323089,1749600633592,-460.0,0.00021095,4]
[365323090,1749600633602,-460.0,0.00021095,4]
[365323091,1749600633612,-460.0,0.00021095,4]
[365323092,1749600633622,-460.0,0.00021095,4]
[365323093,1749600633632,-460.0,0.00021095,4]
[365323094,1749600633642,-460.0,0.00021095,4]
[365323095,1749600633652,-460.0,0.00021095,4]
[365323096,1749600633662,-525.09977558,0.00021095,4]
[365323097,1749600633671,-435.26812203,0.00021095,4]
[365323098,1749600633681,-430.0,0.00021095,4]
[365323099,1749600633690,-460.0,0.00021095,4]
[365323100,1749600633700,-460.0,0.00021095,4]
[365323101,1749600633710,-350.0,0.00021095,4]
[365323102,1749600633720,-430.0,0.00021095,4]
[365323103,1749600633729,-430.0,0.00021095,4]
[365323104,1749600633738,-430.0,0.00021095,4]
[365323105,1749600633748,-460.0,0.00021095,4]
[365323106,1749600633758,-470.0,0.00021095,4]
[365323107,1749600633768,-470.0,0.00021095,4]
[365323108,1749600633777,-470.0,0.00021095,4]
[365323109,1749600633787,-470.0,0.00021095,4]
[365323110,1749600633797,-460.0,0.00021095,4]
[365323111,1749600633807,-460.0,0.00021095,4]
[365323112,1749600633817,-460.0,0.00021095,4]
[365323113,1749600633827,-430.0,0.00021095,4]
[365323114,1749600633837,-460.0,0.00021095,4]
[365323115,1749600633847,-430.0,0.00021095,4]
[365323116,1749600633857,-430.0,0.00021095,4]
[365323117,1749600633867,-460.0,0.00021095,4]
[365323118,1749600633876,-460.0,0.00021095,4]
[365323119,1749600633887,-400.0,0.00021095,4]
[365323120,1749600633897,-460.0,0.00021095,4]
[365323121,1749600633907,-460.0,0.00021095,4]
[365323122,1749600633916,-460.0,0.00021095,4]
[365323123,1749600633925,-390.0,0.00021095,4]
[365323124,1749600633935,-460.0,0.00021095,4]
[365323125,1749600633945,-460.0,0.00021095,4]
[365323126,1749600633955,-430.0,0.00021095,4]
[365323127,1749600633965,-460.0,0.00021095,4]
[365323128,1749600633975,-460.0,0.00021095,4]
[365323129,1749600633985,-450.0,0.00021095,4]
[365323130,1749600633994,-344.11,0.00021095,4]
[365323131,1749600634004,-398.95049704,0.00021095,4]
[365323132,1749600634014,-400.0,0.00021095,4]
[365323133,1749600634024,-430.0,0.00021095,4]
[365323134,1749600634034,-282.57561481,0.00021095,4]
[365323135,1749600634043,-430.0,0.00021095,4]
[365323136,1749600634055,-460.0,0.00021095,4]
[365323137,1749600634065,-460.0,0.00021095,4]
[365323138,1749600634075,-450.0,0.00021095,4]
[365323139,1749600634086,-460.0,0.00021095,4]
[365323140,1749600634096,-460.0,0.00021095,4]
[365323141,1749600634107,-430.0,0.00021095,4]
[365323142,1749600634117,-460.0,0.00021095,4]
[365323143,1749600634127,-460.0,0.00021095,4]
[365323144,1749600634138,-460.0,0.00021095,4]
[365323145,1749600634148,-460.0,0.00021095,4]
[365323146,1749600634158,-460.0,0.00021095,4]
[365323147,1749600634168,-460.0,0.00021095,4]
[365323148,1749600634179,-472.27976292,0.00021095,4]
[365323149,1749600634190,-450.0,0.00021095,4]
[365323150,1749600634200,-460.0,0.00021095,4]
[365323151,1749600634210,-460.0,0.00021095,4]
[365323152,1749600634221,-396.84150893,0.00021095,4]
[365323153,1749600634231,-160.0,0.00021095,4]
[365323154,1749600634242,-331.15364296,0.00021095,4]
[365323155,1749600634252,-460.0,0.00021095,4]
[365323156,1749600634263,-460.0,0.00021095,4]
[365323157,1749600634273,-460.0,0.00021095,4]
[365323158,1749600634283,-500.0,0.00021095,4]
[365323159,1749600634293,-449.83498287,0.00021095,4]
[365323160,1749600634311,-50.16501713,0.00021095,4]
[365323161,1749600634321,-500.0,0.00021095,4]
[365323162,1749600634331,-500.0,0.00021095,4]
[365323163,1749600634341,-460.0,0.00021095,4]
[365323164,1749600634355,-460.0,0.00021095,4]
[365323165,1749600634365,-460.0,0.00021095,4]
[365323166,1749600634375,-460.0,0.00021095,4]
[365323167,1749600634389,-460.0,0.00021095,4]
[365323168,1749600634399,-450.03230617,0.00021095,4]
[365323169,1749600634410,-430.0,0.00021095,4]
[365323170,1749600634420,-460.0,0.00021095,4]
[365323171,1749600634430,-460.0,0.00021095,4]
[365323172,1749600634439,-460.0,0.00021095,4]
[365323173,1749600634448,-460.0,0.00021095,4]
[365323174,1749600634457,-460.0,0.00021095,4]
[365323175,1749600634467,-460.0,0.00021095,4]
[365323176,1749600634477,-460.0,0.00021095,4]
[365323177,1749600634487,-460.0,0.00021095,4]
[365323178,1749600634497,-460.0,0.00021095,4]
[365323179,1749600634507,-460.0,0.00021095,4]
[365323180,1749600634516,-490.0,0.00021095,4]
[365323181,1749600634526,-460.0,0.00021095,4]
[365323182,1749600634536,-460.0,0.00021095,4]
[365323183,1749600634546,-460.0,0.00021095,4]
[365323184,1749600634555,-460.0,0.00021095,4]
[365323185,1749600634566,-460.0,0.00021095,4]
[365323186,1749600634576,-460.0,0.00021095,4]
[365323187,1749600634586,-460.0,0.00021095,4]
[365323188,1749600634596,-460.0,0.00021095,4]
[365323189,1749600634605,-570.0,0.00021095,4]
[365323190,1749600634615,-430.0,0.00021095,4]
[365323191,1749600634625,-460.0,0.00021095,4]
[365323192,1749600634636,-430.0,0.00021095,4]
[365323193,1749600634646,-460.0,0.00021095,4]
[365323194,1749600634656,-460.0,0.00021095,4]
[365323195,1749600634666,-460.0,0.00021095,4]
[365323196,1749600634675,-460.0,0.00021095,4]
[365323197,1749600634686,-460.0,0.00021095,4]
[365323198,1749600634695,-400.0,0.00021095,4]
[365323199,1749600634705,-430.0,0.00021095,4]
[365323200,1749600634715,-460.0,0.00021095,4]
[365323201,1749600634724,-460.0,0.00021095,4]
[365323202,1749600634734,-460.0,0.00021095,4]
[365323203,1749600634743,-460.0,0.00021095,4]
[365323204,1749600634753,-460.0,0.00021095,4]
[365323205,1749600634763,-460.0,0.00021095,4]
[365323206,1749600634773,-460.0,0.00021095,4]
[365323207,1749600634782,-460.0,0.00021095,4]
[365323208,1749600634792,-460.0,0.00021095,4]
[365323209,1749600634802,-460.0,0.00021095,4]
[365323210,1749600634812,-460.0,0.00021095,4]
[365323211,1749600634822,-460.0,0.00021095,4]
[365323212,1749600634831,-460.0,0.00021095,4]
[365323213,1749600634841,-450.0,0.00021095,4]
[365323214,1749600634851,-460.0,0.00021095,4]
[365323215,1749600634860,-400.0,0.00021095,4]
[365323216,1749600634870,-460.0,0.00021095,4]
[365323217,1749600634880,-460.0,0.00021095,4]
[365323218,1749600634895,-460.0,0.00021095,4]
[365323219,1749600634905,-500.0,0.00021095,4]
[365323220,1749600634915,-430.0,0.00021095,4]
[365323221,1749600634925,-374.19538542,0.00021095,4]
[365323222,1749600634935,-460.0,0.00021095,4]
[365323223,1749600634945,-460.0,0.00021095,4]
[365323224,1749600634954,-460.0,0.00021095,4]
[365323225,1749600634964,-460.0,0.00021095,4]
[365323226,1749600634982,-460.0,0.00021095,4]
[365323227,1749600634995,-460.0,0.00021095,4]
[365323228,1749600635005,-460.0,0.00021095,4]
[365323229,1749600635015,-460.0,0.00021095,4]
[365323230,1749600635025,-460.0,0.00021095,4]
[365323231,1749600635034,-460.0,0.00021095,4]
[365323232,1749600635045,-460.0,0.00021095,4]
[365323233,1749600635055,-460.0,0.00021095,4]
[365323234,1749600635066,-460.0,0.00021095,4]
[365323235,1749600635075,-460.0,0.00021095,4]
[365323236,1749600635086,-460.0,0.00021095,4]
[365323237,1749600635096,-460.0,0.00021095,4]
[365323238,1749600635107,-204.69692129,0.00021095,4]
[365323239,1749600635116,-460.0,0.00021095,4]
[365323240,1749600635127,-400.0,0.00021095,4]
[365323241,1749600635138,-460.0,0.00021095,4]
[365323242,1749600635148,-460.0,0.00021095,4]
[365323243,1749600635158,-460.0,0.00021095,4]
[365323244,1749600635167,-460.0,0.00021095,4]
[365323245,1749600635177,-460.0,0.00021095,4]
[365323246,1749600635187,-450.0,0.00021095,4]
[365323247,1749600635196,-460.0,0.00021095,4]
[365323248,1749600635206,-400.53725127,0.00021095,4]
[365323249,1749600635215,-460.0,0.00021095,4]
[365323250,1749600635225,-460.0,0.00021095,4]
[365323251,1749600635235,-430.0,0.00021095,4]
[365323252,1749600635244,-460.0,0.00021095,4]
[365323253,1749600635254,-460.0,0.00021095,4]
[365323254,1749600635265,-430.0,0.00021095,4]
[365323255,1749600635274,-460.0,0.00021095,4]
[365323256,1749600635287,-460.0,0.00021095,4]
[365323257,1749600635301,-300.0,0.00021095,4]
[365323258,1749600635310,-460.0,0.00021095,4]
[365323259,1749600635320,-460.0,0.00021095,4]
[365323260,1749600635330,-460.0,0.00021095,4]
[365323261,1749600635342,-430.0,0.00021095,4]
[365323262,1749600635352,-441.59147793,0.00021095,4]
[365323263,1749600635361,-460.0,0.00021095,4]
[365323264,1749600635371,-430.0,0.00021095,4]
[365323265,1749600635383,-460.0,0.00021095,4]
[365323266,1749600635392,-460.0,0.00021095,4]
[365323267,1749600635401,-430.91649204,0.00021095,4]
[365323268,1749600635411,-460.0,0.00021095,4]
[365323269,1749600635421,-460.0,0.00021095,4]
[365323270,1749600635431,-460.0,0.00021095,4]
[365323271,1749600635441,-460.0,0.00021095,4]
[365323272,1749600635450,-460.0,0.00021095,4]
[365323273,1749600635459,-460.0,0.00021095,4]
[365323274,1749600635469,-460.0,0.00021095,4]
[365323275,1749600635479,-460.0,0.00021095,4]
[365323276,1749600635489,-430.0,0.00021095,4]
[365323277,1749600635499,-401.37522624,0.00021095,4]
[365323278,1749600635508,-460.0,0.00021095,4]
[365323279,1749600635518,-504.06427936,0.00021095,4]
[365323280,1749600635528,-460.0,0.00021095,4]
[365323281,1749600635538,-460.0,0.00021095,4]
[365323282,1749600635547,-460.0,0.00021095,4]
[365323283,1749600635557,-447.99994809,0.00021095,4]
[365323284,1749600635567,-460.0,0.00021095,4]
[365323285,1749600635576,-460.0,0.00021095,4]
[365323286,1749600635586,-460.0,0.00021095,4]
[365323287,1749600635596,-257.58301212,0.00021095,4]
[365323288,1749600635605,-460.0,0.00021095,4]
[365323289,1749600635615,-402.66886999,0.00021095,4]
[365323290,1749600635625,-460.0,0.00021095,4]
[365323291,1749600635636,-460.0,0.00021095,4]
[365323292,1749600635647,-460.0,0.00021095,4]
[365323293,1749600635656,-460.0,0.00021095,4]
[365323294,1749600635666,-460.0,0.00021095,4]
[365323295,1749600635676,-460.0,0.00021095,4]
[365323296,1749600635686,-480.17217361,0.00021095,4]
[365323297,1749600635696,-371.81984033,0.00021095,4]
[365323298,1749600635706,-430.0,0.00021095,4]
[365323299,1749600635715,-421.55637079,0.00021095,4]
[365323300,1749600635844,-460.0,0.00021095,4]
[365323301,1749600635855,-677.71,0.00021095,4]
[365323302,1749600635865,-460.0,0.00021095,4]
[365323303,1749600635875,-460.0,0.00021095,4]
[365323304,1749600635886,-2407.03,0.00021095,4]
[365323305,1749600635896,-460.0,0.00021095,4]
[365323306,1749600635906,-460.0,0.00021095,4]
[365323307,1749600635915,-460.0,0.00021095,4]
[365323308,1749600635925,-460.0,0.00021095,4]
[365323309,1749600635934,-460.0,0.00021095,4]
[365323310,1749600635944,-460.0,0.00021095,4]
[365323311,1749600635954,-460.0,0.00021095,4]
[365323312,1749600635963,-430.0,0.00021095,4]
[365323313,1749600635973,-460.0,0.00021095,4]
[365323314,1749600635983,-460.0,0.00021095,4]
[365323315,1749600635992,-400.0,0.00021095,4]
[365323316,1749600636002,-460.0,0.00021095,4]
[365323317,1749600636015,-871.51,0.00021095,4]
[365323318,1749600636027,-460.0,0.00021095,4]
[365323319,1749600636038,-460.0,0.00021095,4]
[365323320,1749600636048,-460.0,0.00021095,4]
[365323321,1749600636060,-460.0,0.00021095,4]
[365323322,1749600636070,-460.0,0.00021095,4]
[365323323,1749600636080,-430.0,0.00021095,4]
[365323324,1749600636089,-460.0,0.00021095,4]
[365323325,1749600636099,-332.94994507,0.00021095,4]
[365323326,1749600636109,-460.0,0.00021095,4]
[365323327,1749600636119,-460.0,0.00021095,4]
[365323328,1749600636129,-460.0,0.00021095,4]
[365323329,1749600636143,-1491.6,0.00021095,4]
[365323330,1749600636153,-500.0,0.00021095,4]
[365323331,1749600636162,-572.2,0.00021095,4]
[365323332,1749600636172,-490.0,0.00021095,4]
[365323333,1749600636183,-460.0,0.00021095,4]
[365323334,1749600636192,-430.0,0.00021095,4]
[365323335,1749600636202,-431.43987039,0.00021095,4]
[365323336,1749600636212,-460.0,0.00021095,4]
[365323337,1749600636227,-629.7,0.00021095,4]
[365323338,1749600636237,-460.0,0.00021095,4]
[365323339,1749600636247,-430.0,0.00021095,4]
[365323340,1749600636256,-539.02846265,0.00021095,4]
[365323341,1749600636266,-400.0,0.00021095,4]
[365323342,1749600636276,-460.0,0.00021095,4]
[365323343,1749600636286,-460.0,0.00021095,4]
[365323344,1749600636295,-460.0,0.00021095,4]
[365323345,1749600636305,-460.0,0.00021095,4]
[365323346,1749600636314,-457.24858843,0.00021095,4]
[365323347,1749600636324,-460.0,0.00021095,4]
[365323348,1749600636334,-460.0,0.00021095,4]
[365323349,1749600636344,-430.0,0.00021095,4]
[365323350,1749600636357,-460.0,0.00021095,4]
[365323351,1749600636366,-460.0,0.00021095,4]
[365323352,1749600636375,-460.0,0.00021095,4]
[365323353,1749600636387,-430.0,0.00021095,4]
[365323354,1749600636397,-460.0,0.00021095,4]
[365323355,1749600636407,-460.0,0.00021095,4]
[365323356,1749600636416,-460.0,0.00021095,4]
[365323357,1749600636428,-460.0,0.00021095,4]
[365323358,1749600636439,-460.0,0.00021095,4]
[365323359,1749600636449,-460.0,0.00021095,4]
[365323360,1749600636459,-460.0,0.00021095,4]
[365323361,1749600636468,-460.0,0.00021095,4]
[365323362,1749600636478,-430.99257096,0.00021095,4]
[365323363,1749600636488,-460.0,0.00021095,4]
[365323364,1749600636497,-382.93370253,0.00021095,4]
[365323365,1749600636507,-460.0,0.00021095,4]
[365323366,1749600636517,-460.0,0.00021095,4]
[365323367,1749600636526,-370.0,0.00021095,4]
[365323368,1749600636535,-460.0,0.00021095,4]
[365323369,1749600636545,-460.0,0.00021095,4]
[365323370,1749600636555,-460.0,0.00021095,4]
[365323371,1749600636564,-430.0,0.00021095,4]
[365323372,1749600636574,-460.0,0.00021095,4]
[365323373,1749600636583,-460.0,0.00021095,4]
[365323374,1749600636593,-460.0,0.00021095,4]
[365323375,1749600636603,-440.0,0.00021095,4]
[365323376,1749600636612,-460.0,0.00021095,4]
[365323377,1749600636622,-460.0,0.00021095,4]
[365323378,1749600636633,-430.0,0.00021095,4]
[365323379,1749600636643,-460.0,0.00021095,4]
[365323380,1749600636653,-460.0,0.00021095,2]
[365323381,1749600636663,-460.0,0.00021095,4]
[365323382,1749600636673,-460.0,0.00021095,4]
[365323383,1749600636682,-2211.98,0.00021095,4]
[365323384,1749600636692,-460.0,0.00021095,4]
[365323385,1749600636703,-440.0,0.00021095,4]
[365323386,1749600636712,-394.75,0.00021095,4]
[365323387,1749600636722,-440.0,0.00021095,4]
[365323388,1749600636732,-460.0,0.00021095,4]
[365323389,1749600636741,-1524.42,0.00021095,4]
[365323390,1749600636751,-430.0,0.00021095,4]
[365323391,1749600636761,-460.0,0.00021095,4]
[365323392,1749600636771,-450.0,0.00021095,4]
[365323393,1749600636780,-460.0,0.00021095,4]
[365323394,1749600636789,-559.35933173,0.00021095,4]
[365323395,1749600636799,-926.75,0.00021095,4]
[365323396,1749600636809,-210.8780847,0.00021095,4]
[365323397,1749600636819,-440.0,0.00021095,4]
[365323398,1749600636828,-460.0,0.00021095,4]
[365323399,1749600636838,-460.0,0.00021095,4]
[365323400,1749600636847,-460.0,0.00021095,4]
[365323401,1749600636856,-460.0,0.00021095,4]
[365323402,1749600636866,-460.0,0.00021095,4]
[365323403,1749600636875,-460.0,0.00021095,4]
[365323404,1749600636886,-460.0,0.00021095,4]
[365323405,1749600636895,-460.0,0.00021095,4]
[365323406,1749600636905,-460.0,0.00021095,4]
[365323407,1749600636915,-1045.72,0.00021095,4]
[365323408,1749600636925,-430.68489453,0.00021095,4]
[365323409,1749600636936,-1035.33,0.00021095,4]
[365323410,1749600636946,-460.0,0.00021095,4]
[365323411,1749600636955,-575.73856884,0.00021095,4]
[365323412,1749600636965,-460.0,0.00021095,4]
[365323413,1749600636975,-2740.55,0.00021095,4]
[365323414,1749600636984,-430.0,0.00021095,4]
[365323415,1749600636993,-460.0,0.00021095,4]
[365323416,1749600637002,-460.0,0.00021095,4]
[365323417,1749600637012,-460.0,0.00021095,4]
[365323418,1749600637022,-460.0,0.00021095,4]
[365323419,1749600637032,-460.0,0.00021095,4]
[365323420,1749600637041,-1159.26,0.00021095,4]
[365323421,1749600637051,-460.0,0.00021095,4]
[365323422,1749600637060,-440.0,0.00021095,4]
[365323423,1749600637070,-430.0,0.00021095,4]
[365323424,1749600637079,-691.32,0.00021095,4]
[365323425,1749600637089,-430.0,0.00021095,4]
[365323426,1749600637098,-400.0,0.00021095,4]
[365323427,1749600637108,-460.0,0.00021095,4]
[365323428,1749600637118,-460.0,0.00021095,4]
[365323429,1749600637128,-430.0,0.00021095,4]
[365323430,1749600637140,-402.22525405,0.00021095,2]
[365323431,1749600637150,-460.0,0.00021095,4]
[365323432,1749600637160,-460.0,0.00021095,4]
[365323433,1749600637170,-430.0,0.00021095,4]
[365323434,1749600637179,-440.0,0.00021095,4]
[365323435,1749600637189,-460.0,0.00021095,4]
[365323436,1749600637199,-460.0,0.00021095,4]
[365323437,1749600637209,-460.0,0.00021095,4]
[365323438,1749600637222,-430.0,0.00021095,4]
[365323439,1749600637235,-460.0,0.00021095,4]
[365323440,1749600637247,-178.96875614,0.00021095,2]
[365323441,1749600637262,-1193.01,0.00021095,4]
[365323442,1749600637274,-460.0,0.00021095,4]